[Event "Tata Steel-A 80th"]
[Site "Wijk aan Zee"]
[Date "2018.01.27"]
[Round "12"]
[White "Giri, Anish"]
[Black "Adhiban, Baskaran"]
[Result "1-0"]
[ECO "A40"]
[WhiteElo "2752"]
[BlackElo "2655"]
[Annotator "Fernandez,D"]
[PlyCount "83"]
[EventDate "2018.01.13"]
[EventType "tourn"]
[EventRounds "13"]
[EventCountry "NED"]
[EventCategory "20"]
[SourceTitle "CBM 183"]
[Source "ChessBase"]
[SourceDate "2018.03.14"]
[SourceVersion "1"]
[SourceVersionDate "2018.03.14"]
[SourceQuality "1"]
[TimeControl "40/6000+30:20/3000+30:900+30"]

1. c4 {[%emt 0:00:00]} g6 {[%emt 0:00:22]} 2. d4 {[%emt 0:01:25]} Bg7 {[%emt 0:
00:10]} 3. Nf3 {[%emt 0:00:06]} c5 {[%emt 0:08:24] A sequence of moves known
to English chess fans as the 'Sniper'...} 4. d5 {[%emt 0:05:44]} d6 {[%emt 0:
01:27]} (4... b5 $5 {probably transposes to a Benko Gambit:} 5. cxb5 a6 6. e4 (
6. bxa6 Nf6 7. Nc3 Bxa6 8. e4 Bxf1 9. Kxf1 d6 {is a main line}) 6... axb5 7. e5
b4 $13 {This position is sufficiently modern for the most exacting taste, and
I think Black is probably fine if he continues with ...Nh6 and/or ...Ba6,
developing as many pieces to the side as possible.}) 5. e4 {[%emt 0:00:48]} e6
{[%emt 0:04:39]} 6. Bd3 {[%emt 0:04:36]} ({Pertinent:} 6. Nc3 exd5 7. cxd5 a6
8. h3 b5 9. Bd3 Nd7 10. O-O Ngf6 11. a3 O-O 12. Bf4 Qb6 13. Qd2 Re8 14. b4 Bb7
15. Rab1 Rac8 16. Rfc1 Nh5 17. Bh6 Bh8 18. Be3 Qd8 19. Bg5 Qb6 20. Be3 Qd8 21.
Bg5 Qb6 22. Be3 {1/2-1/2 (22) Matlakov,M (2714)-Zvjaginsev,V (2661) Sochi 2017}
) 6... exd5 {[%emt 0:00:10]} 7. cxd5 {[%emt 0:02:19]} ({I was always taught
that if White is able to recapture with the e-pawn, i.e.} 7. exd5 $14 {then
the Benoni construction has basically failed and White is better.}) 7... Bg4 {
[%emt 0:04:25]} ({A good question to ask is why not} 7... Nf6 {Maybe} 8. h3 (8.
Nc3 O-O 9. O-O ({Or} 9. h3 b5) 9... Bg4 {is main line theory.}) 8... O-O 9. O-O
{might have been something Black didn't like - the move order certainly raises
unusual questions. Play could continue} b5 $6 (9... c4 10. Bc2 b5 $132 {
is better}) 10. Bxb5 Nxe4 11. Re1 Nf6 12. Nc3 $14 {when the position resembles
the line which refutes 1.d4 b5.}) 8. Nbd2 $1 $14 {[%emt 0:01:11]} Nf6 {[%emt 0:
05:15]} 9. O-O {[%emt 0:00:47]} O-O {[%emt 0:00:07]} 10. h3 {[%emt 0:00:27]}
Bxf3 {[%emt 0:00:10]} 11. Nxf3 {[%emt 0:00:05]} c4 {[%emt 0:00:04]} 12. Bxc4 {
[%emt 0:15:46]} Nxe4 {[%emt 0:00:11]} 13. Re1 {[%emt 0:00:35]} Re8 {[%emt 0:02:
30]} 14. Qc2 {[%emt 0:02:06]} Nf6 {[%emt 0:03:45]} 15. Rxe8+ {[%emt 0:13:50]}
Nxe8 {[%emt 0:02:29]} 16. Bg5 $146 {[%emt 0:11:28] It's just a bishop pair,
and Black lacks the usual compensations that the Benoni offers.} (16. Qb3 Qc7
17. Be3 Nd7 18. Rc1 Nc5 19. Qa3 Qd8 20. b4 Nd7 21. Qd3 Rc8 22. Bb3 Rxc1+ 23.
Bxc1 Qc7 24. Bd2 a6 25. a4 Ne5 26. Nxe5 Bxe5 27. g4 Ng7 28. Kg2 h5 29. f4 Bf6
30. a5 hxg4 31. hxg4 Qd7 32. Bd1 Ne8 33. Be2 Nc7 34. Qc4 Nb5 35. Be3 Qe8 36.
Kf3 Nc3 37. g5 {1/2-1/2 (37) Khismatullin,D (2601)-Andreikin,D (2625) Voronezh
2009}) 16... Nf6 {[%emt 0:02:28]} 17. Nd4 {[%emt 0:08:05]} (17. Re1 {was more
natural for me.}) 17... Qb6 {[%emt 0:17:10] Probably relying on ...Nxe3, but
White's next makes this irrelevant.} ({After the natural} 17... Nbd7 18. Ne6 $5
{could be the point, but the story doesn't necessarily end here:} fxe6 19. dxe6
d5 20. Bxd5 Nf8 21. Bxb7 Rb8 22. Bc6 $44) 18. Be3 {[%emt 0:11:04]} Ng4 $6 {
[%emt 0:02:40] Not a great move, but the position wasn't fun anyway.} 19. Qe4 {
[%emt 0:01:35]} Nf6 {[%emt 0:22:10]} (19... Nxe3 20. Qe8+ Bf8 21. fxe3 {
leaves Black completely helpless against Rf1 and Ne6 ideas, despite the
initially optimistic prognosis of the machine. For instance} Qc7 22. Ne6 fxe6
23. dxe6 Qe7 24. Qc8 $18 {with Rf1-f7 to come.}) 20. Qe7 {[%emt 0:01:25] The
position, and this move in particular, give me flashbacks to the game
Hawkins-Fernandez, 4NCL 2016, when I tried some kind of KID/Benko mashup.} Nbd7
{[%emt 0:00:15]} 21. Nb5 {[%emt 0:00:24]} Bf8 {[%emt 0:03:57]} 22. Bxb6 {
[%emt 0:00:42]} Bxe7 {[%emt 0:00:02]} 23. Bxa7 $16 {[%emt 0:00:06]} Ne5 {
[%emt 0:05:20]} 24. b3 {[%emt 0:03:15]} Nxc4 {[%emt 0:00:50]} 25. bxc4 {
[%emt 0:00:05]} Rc8 {[%emt 0:00:05]} 26. Re1 {[%emt 0:01:08]} Bf8 {[%emt 0:01:
52]} 27. Bd4 {[%emt 0:00:17]} Nd7 {[%emt 0:00:07]} 28. Rc1 {[%emt 0:00:07]} Ra8
{[%emt 0:04:29]} 29. Rc2 {[%emt 0:01:13]} Ra6 {[%emt 0:00:02]} 30. Re2 {
[%emt 0:03:42]} Ra4 {[%emt 0:01:33]} ({If Black has to defend passively with} 
30... Ra8 {then he is not long for this world, but there might not have been
anything objectively better.}) 31. Re8 $18 {[%emt 0:00:58] A well-calculated
way to clinch the game in tactics rather than technique.} Rxc4 {[%emt 0:00:14]}
32. Rd8 {[%emt 0:00:09]} Ne5 {[%emt 0:05:23]} (32... Rb4 33. a4 $1 {doesn't
change much.}) 33. f4 {[%emt 0:02:48]} Nd3 {[%emt 0:00:41]} 34. Bf6 {[%emt 0:
00:17]} Re4 {[%emt 0:03:33]} 35. Nxd6 {[%emt 0:00:21]} Re1+ {[%emt 0:00:08]}
36. Kh2 {[%emt 0:00:04]} Nf2 {[%emt 0:00:02] Directed against White's most
obvious idea of Nc8-e7, but there are others.} 37. Bg5 {[%emt 0:03:41]} h5 {
[%emt 0:01:56]} (37... Kg7 38. Ne8+ Kg8 39. Nf6+ Kg7 40. d6 $18) 38. Bh6 {
[%emt 0:01:28]} h4 {[%emt 0:00:02]} 39. g4 {[%emt 0:01:00]} Kh7 {[%emt 0:00:07]
} 40. Rxf8 {[%emt 0:00:00]} Nd3 {[%emt 0:01:06] This move looks like it
threatens perpetual check, but in fact it doesn't even do that. Black is
beyond saving, of course.} 41. Rxf7+ {[%emt 0:02:04]} Kh8 {[%emt 0:00:05]} 42.
Rf8+ {[%emt 0:03:34] Probably the idea was Nf7 next and then the white king
trivially dodges the checks using f3.} 1-0

[Event "Tata Steel-A 80th"]
[Site "Wijk aan Zee"]
[Date "2018.01.27"]
[Round "12"]
[White "Hou, Yifan"]
[Black "Wei, Yi"]
[Result "1/2-1/2"]
[ECO "C42"]
[WhiteElo "2680"]
[BlackElo "2743"]
[Annotator "Fernandez,D"]
[PlyCount "89"]
[EventDate "2018.01.13"]
[EventType "tourn"]
[EventRounds "13"]
[EventCountry "NED"]
[EventCategory "20"]
[SourceTitle "CBM 183"]
[Source "ChessBase"]
[SourceDate "2018.03.14"]
[SourceVersion "1"]
[SourceVersionDate "2018.03.14"]
[SourceQuality "1"]
[TimeControl "40/6000+30:20/3000+30:900+30"]

1. e4 {[%emt 0:00:00]} e5 {[%emt 0:00:05]} 2. Nf3 {[%emt 0:00:00]} Nf6 {
[%emt 0:00:08]} 3. Nxe5 {[%emt 0:00:00]} d6 {[%emt 0:00:05]} 4. Nf3 {[%emt 0:
00:00]} Nxe4 {[%emt 0:00:08]} 5. Nc3 {[%emt 0:00:58]} (5. c4 Nc6 {can, as we
now know, lead to a quick repetition of moves...}) 5... Nxc3 {[%emt 0:00:07]} (
5... Nf6 $5 {was weakly recommended in my analysis to the first round- White
needs to get an idea or two and then he is better.}) 6. dxc3 {[%emt 0:00:04]}
Be7 {[%emt 0:00:07]} 7. Be3 {[%emt 0:00:08] Interestingly, this is the same
system chosen against Hou Yifan herself by Anish Giri.} Nc6 {[%emt 0:00:08]} 8.
Qd2 {[%emt 0:00:06] Trying to make do without Anish's Bd3 and head directly
for Bb5xc6 to inflict on her opponent the structure that caused her so much
trouble back in round 1!} (8. Bd3 Be6 9. Qe2 Bf6 10. O-O-O Qe7 11. Kb1 a6 12.
Rhe1 O-O-O 13. h3 Rhe8 14. g4 h6 15. Nd2 $1 $14 {Now White is probably a tiny
bit better in practical terms, but obviously an incredible amount of technique
is needed before White can think about winning. Nevertheless he did in Giri,
A-Hou,Y, Tata Steel Masters 2018.}) 8... Be6 {[%emt 0:00:10]} 9. O-O-O {
[%emt 0:00:11]} Bf6 {[%emt 0:02:50]} (9... Qd7 {was the main move, and in fact
this was used in a previous Wei Yi game - I wonder what the problem was?} 10.
Kb1 a6 11. h3 O-O-O 12. Be2 Bf6 13. Nd4 Bxd4 14. cxd4 d5 15. g4 f6 16. Rdg1 Na7
17. Rg3 Kb8 18. h4 h6 19. Bf4 g5 20. Be3 Nc8 21. f4 Nd6 22. Qb4 gxh4 23. Rxh4
f5 24. g5 {1/2-1/2 (24) Vallejo Pons,F (2705)-Li,C (2741) Palma de Mallorca
2017}) (9... O-O {is not a bad move, but Black will need a plan for dealing
with the slow kingside attack from White:} 10. Bd3 Qd7 11. h4 Rad8 $6 12. Ng5
Bf5 13. g4 $40) 10. Kb1 {[%emt 0:06:39]} Qd7 {[%emt 0:01:39]} 11. Bg5 {[%emt 0:
06:55] Pointing out a problem with the moves ...Bf6 and ... Qd7 in conjunction
(...Qe7 would not have had this problem, but it would have made Nd4 look more
convincing, so perhaps the issue lies with ...Bf6.)} (11. Ng5 Bxg5 12. Bxg5 f6
13. Bf4 O-O-O $11 {is the stereotyped continuation from both sides, when White
is well advised to not develop her f1-bishop quickly, or else it will simply
be harrassed.}) (11. h4 O-O-O 12. Nd4 Bxd4 $5 13. cxd4 d5 {Li,C-Wei,Y China
2017 led to the kind of position that the present event is making me
re-evaluate as closer to 'equal' than +/=.}) 11... Bxg5 {[%emt 0:00:30]} 12.
Nxg5 {[%emt 0:00:11]} O-O-O {[%emt 0:00:08]} 13. Nxe6 {[%emt 0:00:05]} Qxe6 {
[%emt 0:00:31]} 14. Bb5 {[%emt 0:00:08]} Qf5 $146 {[%emt 0:30:50]} (14... Rde8
15. Rhe1 Qf5 16. Bxc6 bxc6 17. Re3 Rxe3 18. Qxe3 Kd7 19. Re1 Qe6 20. Qc1 Qg4
21. Qe3 Qe6 22. Qc1 Qg4 23. Qe3 {1/2-1/2 (23) Yu,Y (2675)-Bu,X (2693) Danzhou
2014}) 15. Bxc6 {[%emt 0:21:28]} bxc6 {[%emt 0:00:07] Mission accomplished,
kind of. White is now slightly better by virtue of pawn-islands, and it looks
very likely that we will reach a queen ending again!} 16. Rhe1 {[%emt 0:00:04]}
Rhe8 {[%emt 0:02:24]} 17. f3 {[%emt 0:05:24]} c5 {[%emt 0:10:01]} 18. b3 $14 {
[%emt 0:07:28]} Kb7 {[%emt 0:07:58]} 19. Re2 {[%emt 0:01:21]} (19. Kb2 $5)
19... Re6 {[%emt 0:17:52]} 20. Rxe6 {[%emt 0:01:44]} fxe6 {[%emt 0:00:13]} 21.
Re1 {[%emt 0:00:04]} e5 {[%emt 0:10:40] Reaching a position which is similar
in essence to Jones-Hou, except White is not a pawn down here.} 22. Qd5+ {
[%emt 0:02:22]} c6 {[%emt 0:01:11]} 23. Qd2 {[%emt 0:01:01]} Kc7 {[%emt 0:07:
25]} 24. Re4 {[%emt 0:01:33]} Qd7 {[%emt 0:02:04]} 25. f4 {[%emt 0:11:54] In
principle a good break to have made, but maybe White should have concentrated
a bit more on the front she had open first.} (25. Qd3 $14 {kept probing.})
25... exf4 {[%emt 0:00:18]} 26. Qe2 {[%emt 0:02:53]} Qf5 {[%emt 0:02:38]} 27.
Ra4 {[%emt 0:01:42]} Kb8 {[%emt 0:00:06]} 28. Qa6 {[%emt 0:01:38]} Qd7 {
[%emt 0:00:31]} 29. Rxf4 {[%emt 0:00:10]} Re8 {[%emt 0:00:23]} 30. Kb2 {
[%emt 0:01:29]} h6 {[%emt 0:04:35]} 31. Qd3 {[%emt 0:02:53]} (31. h4 {was a
good idea - none of Black's pieces has much mobility and White can try and
arrange b4!? at a good time - or else just push kingside pawns until Black
feels he has to do something.}) 31... Kb7 {[%emt 0:00:53]} 32. h4 {[%emt 0:01:
25]} Re6 {[%emt 0:01:55]} 33. Rf8 {[%emt 0:08:39]} Re7 {[%emt 0:00:13]} 34. g4
{[%emt 0:02:34]} (34. Qg3 {keeps Black more tied down.}) 34... d5 {[%emt 0:01:
30]} 35. g5 $6 {[%emt 0:05:17] Now Black equalises with...} hxg5 {[%emt 0:03:
50]} 36. hxg5 {[%emt 0:00:03]} Rf7 $11 {[%emt 0:00:15] ...since the position
is a little bit too open. Black can try to get counterplay based on the f-file
and diagonals a1-h8/ b1-h7 as indeed he proceeds to do.} 37. Rg8 {[%emt 0:04:
31]} Re7 {[%emt 0:00:14]} 38. Rf8 {[%emt 0:02:49]} Rf7 {[%emt 0:00:09]} 39. Rh8
{[%emt 0:00:13]} Qd6 {[%emt 0:04:35]} 40. Qh3 {[%emt 0:00:00]} d4 {[%emt 0:00:
32]} 41. Re8 {[%emt 0:14:16]} (41. Qc8+ Kb6 42. Qb8+ Qxb8 43. Rxb8+ Kc7 44. Rg8
{might offer some small chances.}) 41... Rf2 {[%emt 0:22:18] Brave play -
Black has calculated all the necessary checks and attacking moves from White.
Now the ideas like ...d3 and ...Rxc2 force White to take real evasive action.}
42. Qd3 {[%emt 0:05:07]} Rg2 {[%emt 0:06:04]} 43. cxd4 {[%emt 0:10:58]} Qxd4+ {
[%emt 0:06:25]} 44. Qxd4 {[%emt 0:00:08]} cxd4 {[%emt 0:00:04]} 45. Re7+ {
[%emt 0:00:43]} 1/2-1/2

[Event "Tata Steel-A 80th"]
[Site "Wijk aan Zee"]
[Date "2018.01.27"]
[Round "12"]
[White "Jones, Gawain C B"]
[Black "Mamedyarov, Shakhriyar"]
[Result "1/2-1/2"]
[ECO "C42"]
[WhiteElo "2640"]
[BlackElo "2804"]
[PlyCount "23"]
[EventDate "2018.01.13"]
[EventType "tourn"]
[EventRounds "13"]
[EventCountry "NED"]
[EventCategory "20"]
[SourceTitle "CBM 183"]
[Source "ChessBase"]
[SourceDate "2018.03.14"]
[SourceVersion "1"]
[SourceVersionDate "2018.03.14"]
[SourceQuality "1"]
[TimeControl "40/6000+30:20/3000+30:900+30"]

1. e4 {[%emt 0:00:00]} e5 {[%emt 0:00:11]} 2. Nf3 {[%emt 0:00:15]} Nf6 {
[%emt 0:00:09]} 3. Nxe5 {[%emt 0:00:42]} d6 {[%emt 0:00:07]} 4. Nf3 {[%emt 0:
00:03]} Nxe4 {[%emt 0:00:06]} 5. c4 {[%emt 0:00:17]} Nc6 {[%emt 0:00:16]} 6.
Nc3 {[%emt 0:01:29]} Nxc3 {[%emt 0:00:18]} 7. dxc3 {[%emt 0:00:07]} g6 {
[%emt 0:01:21]} 8. Bg5 {[%emt 0:07:13]} Be7 {[%emt 0:01:42]} 9. Bh6 {[%emt 0:
04:52]} Bf8 {[%emt 0:02:14]} 10. Bg5 {[%emt 0:00:40]} Be7 {[%emt 0:00:12]} 11.
Bh6 {[%emt 0:00:27]} Bf8 {[%emt 0:00:10]} 12. Bg5 1/2-1/2

[Event "Tata Steel-A 80th"]
[Site "Wijk aan Zee"]
[Date "2018.01.27"]
[Round "12"]
[White "Svidler, Peter"]
[Black "Karjakin, Sergey"]
[Result "1/2-1/2"]
[ECO "A07"]
[WhiteElo "2768"]
[BlackElo "2753"]
[PlyCount "62"]
[EventDate "2018.01.13"]
[EventType "tourn"]
[EventRounds "13"]
[EventCountry "NED"]
[EventCategory "20"]
[SourceTitle "CBM 183"]
[Source "ChessBase"]
[SourceDate "2018.03.14"]
[SourceVersion "1"]
[SourceVersionDate "2018.03.14"]
[SourceQuality "1"]
[TimeControl "40/6000+30:20/3000+30:900+30"]

1. Nf3 {[%emt 0:00:00]} d5 {[%emt 0:00:06]} 2. g3 {[%emt 0:00:00]} c6 {[%emt 0:
00:11]} 3. Bg2 {[%emt 0:00:00]} Nf6 {[%emt 0:00:09]} 4. O-O {[%emt 0:00:06]}
Bg4 {[%emt 0:00:05]} 5. h3 {[%emt 0:00:28]} Bh5 {[%emt 0:00:06]} 6. d4 {
[%emt 0:00:19]} e6 {[%emt 0:00:45]} 7. c4 {[%emt 0:00:36]} Nbd7 {[%emt 0:00:21]
} 8. cxd5 {[%emt 0:04:57]} exd5 {[%emt 0:00:29]} 9. Ne5 {[%emt 0:04:19]} Ne4 {
[%emt 0:19:52]} 10. Nd2 {[%emt 0:00:16]} Nxd2 {[%emt 0:08:21]} 11. Bxd2 {
[%emt 0:00:13]} Nxe5 {[%emt 0:00:03]} 12. dxe5 {[%emt 0:00:08]} Bc5 {[%emt 0:
00:04]} 13. Kh2 {[%emt 0:21:08]} O-O {[%emt 0:03:30]} 14. Rc1 {[%emt 0:10:43]}
Qe7 {[%emt 0:06:54]} 15. g4 {[%emt 0:05:43]} Bg6 {[%emt 0:00:13]} 16. f4 {
[%emt 0:00:14]} f5 {[%emt 0:00:11]} 17. Qb3 {[%emt 0:00:25]} Rad8 {[%emt 0:33:
15]} 18. gxf5 {[%emt 0:09:51]} Bxf5 {[%emt 0:00:05]} 19. Rxc5 {[%emt 0:01:01]}
Qxc5 {[%emt 0:00:21]} 20. e4 {[%emt 0:00:10]} Bg6 {[%emt 0:16:26]} 21. Bb4 {
[%emt 0:21:04]} Qc4 {[%emt 0:02:17]} 22. f5 {[%emt 0:09:09]} Bh5 {[%emt 0:00:
55]} 23. Bxf8 {[%emt 0:07:52]} Qxb3 {[%emt 0:00:20]} 24. axb3 {[%emt 0:00:01]}
Kxf8 {[%emt 0:00:07]} 25. exd5 {[%emt 0:00:09]} cxd5 {[%emt 0:00:06]} 26. Kg3 {
[%emt 0:00:09]} d4 {[%emt 0:01:36]} 27. Bf3 {[%emt 0:10:34]} Bxf3 {[%emt 0:01:
34]} 28. Kxf3 {[%emt 0:00:05]} d3 {[%emt 0:00:03]} 29. Rd1 {[%emt 0:00:43]} d2
{[%emt 0:00:06]} 30. Ke3 {[%emt 0:00:06]} Rd5 {[%emt 0:00:04]} 31. Ke4 {
[%emt 0:00:02]} Rd8 {[%emt 0:00:06]} 1/2-1/2